fUSD/lending_fUSD_20260601
["ID","MTS","AMOUNT","RATE_DAILY","PERIOD"]
[423624442,1780263066000,-151.0,0.00038356,30]
[423624444,1780263066000,-151.0,0.00038356,30]
[423624456,1780263066000,-151.0,0.00038356,30]
[423624454,1780263066000,-151.0,0.00038356,30]
[423624455,1780263066000,-755.902323,0.00038356,30]
[423624447,1780263066000,-151.0,0.00038356,30]
[423624448,1780263066000,-151.0,0.00038356,30]
[423624446,1780263066000,-151.0,0.00038356,30]
[423624445,1780263066000,-755.902323,0.00038356,30]
[423624453,1780263066000,-755.902323,0.00038356,30]
[423624449,1780263066000,-755.902323,0.00038356,30]
[423624450,1780263066000,-151.738666,0.00038356,30]
[423624452,1780263066000,-755.902323,0.00038356,30]
[423624451,1780263066000,-151.0,0.00038356,30]
[423624438,1780263066000,-282.216408,0.00038356,30]
[423624484,1780263066000,-221.0,0.000384,120]
[423624486,1780263066000,-2849.85177406,0.0003842,30]
[423624488,1780263066000,-1703.87007754,0.0003842,30]
[423624520,1780263066000,-944.988119,0.00038566,30]
[423624522,1780263066000,-5000.0,0.00038566,2]
[423624526,1780263066000,-5000.0,0.00038566,2]
[423624521,1780263066000,-944.988119,0.00038566,30]
[423624527,1780263066000,-5000.0,0.00038566,2]
[423624528,1780263066000,-250.0,0.00038566,2]
[423624530,1780263066000,-1250.0,0.00038579,2]
[423624525,1780263066000,-250.0,0.00038566,2]
[423624533,1780263066000,-1000.0,0.00038649,90]
[423624543,1780263066000,-861.73773926,0.00038795,7]
[423624534,1780263066000,-1590.0,0.00038658,11]
[423624532,1780263066000,-2350.0309,0.0003864,30]
[423624540,1780263066000,-46283.59419265,0.00038723,6]
[423624539,1780263066000,-1300.0,0.00038717,60]
[423624536,1780263066000,-292.94,0.00038664,30]
[423624542,1780263066000,-2000.0,0.00038781,120]
[423624541,1780263066000,-1000.0,0.00038743,120]
[423624538,1780263066000,-989.20309683,0.00038713,120]
[423624537,1780263066000,-1046.2056,0.000387,120]
[423624548,1780263066000,-211.27839,0.000388,2]
[423624545,1780263066000,-325.213243,0.000388,2]
[423624547,1780263066000,-328.213243,0.000388,2]
[423624549,1780263066000,-221.0,0.000388,120]
[423624544,1780263066000,-337.213246,0.000388,2]
[423624550,1780263066000,-500.0,0.00038822,2]
[423624546,1780263066000,-322.213243,0.000388,2]
[423624489,1780263066000,-2420.64172225,0.00038431,10]
[423624529,1780263066000,-250.0,0.00038566,2]
[423624531,1780263066000,-151.0,0.000386,120]
[423624535,1780263066000,-1590.0,0.00038658,11]
[423624523,1780263066000,-5000.0,0.00038566,2]
[423624497,1780263066000,-2420.64172213,0.00038431,10]
[423624524,1780263066000,-250.0,0.00038566,2]
[423624492,1780263066000,-2420.64172213,0.00038431,10]
[423624495,1780263066000,-2420.64172213,0.00038431,10]
[423624494,1780263066000,-2420.64172213,0.00038431,10]
[423624499,1780263066000,-2420.64172213,0.00038431,10]
[423624493,1780263066000,-2420.64172213,0.00038431,10]
[423624496,1780263066000,-2420.64172213,0.00038431,10]
[423624498,1780263066000,-2420.64172213,0.00038431,10]
[423624502,1780263066000,-152.0,0.00038459,7]
[423624503,1780263066000,-171.71,0.00038493,30]
[423624500,1780263066000,-2420.64172213,0.00038431,10]
[423624504,1780263066000,-390.56574748,0.0003853,30]
[423624506,1780263066000,-500.0,0.00038539,7]
[423624501,1780263066000,-2420.64172213,0.00038431,10]
[423624508,1780263066000,-500.0,0.00038539,7]
[423624511,1780263066000,-1000.0,0.00038564,90]
[423624514,1780263066000,-151.0,0.00038566,30]
[423624513,1780263066000,-151.0,0.00038566,30]
[423624518,1780263066000,-944.988119,0.00038566,30]
[423624512,1780263066000,-151.0,0.00038566,30]
[423624510,1780263066000,-1590.0,0.00038557,11]
[423624517,1780263066000,-206.6698,0.00038566,30]
[423624509,1780263066000,-518.8,0.00038539,7]
[423624505,1780263066000,-500.0,0.00038539,7]
[423624519,1780263066000,-944.988119,0.00038566,30]
[423624507,1780263066000,-500.0,0.00038539,7]
[423624515,1780263066000,-236.4797,0.00038566,30]
[423624516,1780263066000,-245.517686,0.00038566,30]
[423624595,1780263067000,-151.0,0.00038922,7]
[423624593,1780263067000,-151.0,0.00038922,7]
[423624582,1780263067000,-163.0,0.00038922,7]
[423624596,1780263067000,-151.0,0.00038922,7]
[423624585,1780263067000,-152.0,0.00038922,7]
[423624589,1780263067000,-240.0,0.00038922,7]
[423624592,1780263067000,-151.0,0.00038922,7]
[423624587,1780263067000,-152.0,0.00038922,7]
[423624584,1780263067000,-152.0,0.00038922,7]
[423624581,1780263067000,-1546.0,0.00038922,7]
[423624580,1780263067000,-1546.0,0.00038922,7]
[423624598,1780263067000,-151.0,0.00038922,7]
[423624588,1780263067000,-152.0,0.00038922,7]
[423624597,1780263067000,-151.0,0.00038922,7]
[423624619,1780263067000,-1546.0,0.00038922,7]
[423624605,1780263067000,-153.0,0.00038922,7]
[423624602,1780263067000,-151.0,0.00038922,7]
[423624599,1780263067000,-151.0,0.00038922,7]
[423624606,1780263067000,-153.0,0.00038922,7]
[423624600,1780263067000,-151.0,0.00038922,7]
[423624604,1780263067000,-153.0,0.00038922,7]
[423624603,1780263067000,-162.57738279,0.00038922,7]
[423624601,1780263067000,-151.0,0.00038922,7]
[423624618,1780263067000,-1546.0,0.00038922,7]
[423624608,1780263067000,-153.0,0.00038922,7]
[423624609,1780263067000,-153.0,0.00038922,7]
[423624610,1780263067000,-153.0,0.00038922,7]
[423624612,1780263067000,-153.0,0.00038922,7]
[423624590,1780263067000,-151.0,0.00038922,7]
[423624594,1780263067000,-151.0,0.00038922,7]
[423624591,1780263067000,-151.0,0.00038922,7]
[423624551,1780263067000,-150.0,0.00038823,120]
[423624586,1780263067000,-152.0,0.00038922,7]
[423624617,1780263067000,-1546.0,0.00038922,7]
[423624552,1780263067000,-11506.74182026,0.00038834,2]
[423624553,1780263067000,-361.41904015,0.00038849,120]
[423624555,1780263067000,-1624.80813581,0.0003888,60]
[423624554,1780263067000,-388.10341944,0.00038849,120]
[423624557,1780263067000,-1250.0,0.00038895,2]
[423624556,1780263067000,-626.0,0.00038884,14]
[423624563,1780263067000,-3221.58609734,0.00038897,2]
[423624566,1780263067000,-331.590765,0.000389,2]
[423624558,1780263067000,-700898.87599109,0.00038895,30]
[423624561,1780263067000,-1247.367113,0.00038895,30]
[423624559,1780263067000,-1247.367113,0.00038895,30]
[423624565,1780263067000,-334.590765,0.000389,2]
[423624562,1780263067000,-1247.367113,0.00038895,30]
[423624560,1780263067000,-1247.367113,0.00038895,30]
[423624564,1780263067000,-349.590767,0.000389,2]
[423624567,1780263067000,-337.590765,0.000389,2]
[423624569,1780263067000,-392.374155,0.000389,2]
[423624571,1780263067000,-1025.32279286,0.000389,31]
[423624570,1780263067000,-15930.78052226,0.000389,2]
[423624578,1780263067000,-1546.0,0.00038922,7]
[423624573,1780263067000,-103983.0850978,0.00038908,2]
[423624577,1780263067000,-1546.0,0.00038922,7]
[423624579,1780263067000,-1546.0,0.00038922,7]
[423624575,1780263067000,-1546.0,0.00038922,7]
[423624568,1780263067000,-334.590765,0.000389,2]
[423624572,1780263067000,-1793.0415295,0.00038908,2]
[423624576,1780263067000,-1546.0,0.00038922,7]
[423624574,1780263067000,-1546.0,0.00038922,7]
[423624583,1780263067000,-300.0,0.00038922,7]
[423624611,1780263067000,-153.0,0.00038922,7]
[423624607,1780263067000,-153.0,0.00038922,7]
[423624615,1780263067000,-231.81231694,0.00038922,7]
[423624650,1780263067000,-649.601906,0.00038995,30]
[423624647,1780263067000,-649.601898,0.00038995,30]
[423624660,1780263067000,-151.0,0.00038995,30]
[423624649,1780263067000,-649.601898,0.00038995,30]
[423624652,1780263067000,-151.0,0.00038995,30]
[423624651,1780263067000,-151.0,0.00038995,30]
[423624661,1780263067000,-1116.386774,0.00038995,30]
[423624656,1780263067000,-151.0,0.00038995,30]
[423624658,1780263067000,-151.0,0.00038995,30]
[423624654,1780263067000,-518.696371,0.00038995,30]
[423624655,1780263067000,-518.696371,0.00038995,30]
[423624664,1780263067000,-1116.386774,0.00038995,30]
[423624663,1780263067000,-158.348425,0.00038995,30]
[423624662,1780263067000,-151.0,0.00038995,30]
[423624648,1780263067000,-649.601898,0.00038995,30]
[423624666,1780263067000,-1116.386774,0.00038995,30]
[423624674,1780263067000,-765.063252,0.00038995,30]
[423624671,1780263067000,-151.0,0.00038995,30]
[423624665,1780263067000,-158.348425,0.00038995,30]
[423624672,1780263067000,-260.157787,0.00038995,30]
[423624673,1780263067000,-151.0,0.00038995,30]
[423624667,1780263067000,-158.348425,0.00038995,30]
[423624669,1780263067000,-158.348419,0.00038995,30]
[423624670,1780263067000,-151.0,0.00038995,30]
[423624681,1780263067000,-3051.21485,0.00038995,30]
[423624679,1780263067000,-3051.214858,0.00038995,30]
[423624677,1780263067000,-3051.214858,0.00038995,30]
[423624680,1780263067000,-765.063258,0.00038995,30]
[423624675,1780263067000,-3051.214858,0.00038995,30]
[423624676,1780263067000,-765.063252,0.00038995,30]
[423624668,1780263067000,-1116.38677,0.00038995,30]
[423624653,1780263067000,-518.696371,0.00038995,30]
[423624613,1780263067000,-153.0,0.00038922,7]
[423624657,1780263067000,-518.696378,0.00038995,30]
[423624659,1780263067000,-151.0,0.00038995,30]
[423624616,1780263067000,-154.0,0.00038922,7]
[423624614,1780263067000,-153.0,0.00038922,7]
[423624623,1780263067000,-1546.0,0.00038922,7]
[423624628,1780263067000,-1546.0,0.00038922,7]
[423624678,1780263067000,-765.063252,0.00038995,30]
[423624624,1780263067000,-1546.0,0.00038922,7]
[423624620,1780263067000,-1546.0,0.00038922,7]
[423624627,1780263067000,-1546.0,0.00038922,7]
[423624629,1780263067000,-1546.0,0.00038922,7]
[423624626,1780263067000,-1546.0,0.00038922,7]
[423624622,1780263067000,-1546.0,0.00038922,7]
[423624631,1780263067000,-1546.0,0.00038922,7]
[423624621,1780263067000,-1546.0,0.00038922,7]
[423624632,1780263067000,-1546.0,0.00038922,7]
[423624625,1780263067000,-1546.0,0.00038922,7]
[423624633,1780263067000,-1546.0,0.00038922,7]
[423624630,1780263067000,-1546.0,0.00038922,7]
[423624642,1780263067000,-250.0,0.00038964,2]
[423624643,1780263067000,-250.0,0.00038964,2]
[423624640,1780263067000,-5000.0,0.00038964,2]
[423624641,1780263067000,-5000.0,0.00038964,2]
[423624638,1780263067000,-2000.0,0.00038963,8]
[423624639,1780263067000,-5000.0,0.00038964,2]
[423624634,1780263067000,-1546.0,0.00038922,7]
[423624644,1780263067000,-250.0,0.00038964,2]
[423624637,1780263067000,-888.0,0.00038958,5]
[423624635,1780263067000,-1613.94599797,0.00038922,7]
[423624645,1780263067000,-20839.59444734,0.00038983,2]
[423624646,1780263067000,-700000.0,0.00038995,30]
[423624636,1780263067000,-1173.74,0.00038934,7]
[423624749,1780263068000,-151.0,0.00038995,30]
[423624768,1780263068000,-10657.30296957,0.00039,2]
[423624752,1780263068000,-755.902323,0.00038995,30]
[423624724,1780263068000,-174.303912,0.00038995,30]
[423624726,1780263068000,-174.303912,0.00038995,30]
[423624722,1780263068000,-187.265087,0.00038995,30]
[423624718,1780263068000,-163.440292,0.00038995,30]
[423624717,1780263068000,-163.440292,0.00038995,30]
[423624716,1780263068000,-163.440292,0.00038995,30]
[423624720,1780263068000,-163.440288,0.00038995,30]
[423624721,1780263068000,-151.0,0.00038995,30]
[423624769,1780263068000,-1392.33471063,0.00039,120]
[423624719,1780263068000,-151.0,0.00038995,30]
[423624760,1780263068000,-755.902331,0.00038995,30]
[423624741,1780263068000,-2105.252162,0.00038995,7]
[423624730,1780263068000,-151.0,0.00038995,15]
[423624746,1780263068000,-151.0,0.00038995,30]
[423624745,1780263068000,-151.0,0.00038995,30]
[423624747,1780263068000,-151.0,0.00038995,30]
[423624762,1780263068000,-151.0,0.00038995,30]
[423624738,1780263068000,-151.0,0.00038995,30]
[423624732,1780263068000,-151.0,0.00038995,30]
[423624742,1780263068000,-2105.252162,0.00038995,7]
[423624753,1780263068000,-262.157492,0.00038995,30]
[423624735,1780263068000,-151.0,0.00038995,30]
[423624767,1780263068000,-3297.59881327,0.00039,2]
[423624759,1780263068000,-151.0,0.00038995,30]
[423624764,1780263068000,-31372.54441353,0.00039,2]
[423624715,1780263068000,-151.0,0.00038995,30]
[423624766,1780263068000,-994.48,0.00039,7]
[423624712,1780263068000,-151.0,0.00038995,30]
[423624695,1780263068000,-1334.460671,0.00038995,30]
[423624707,1780263068000,-219.698004,0.00038995,30]
[423624733,1780263068000,-151.0,0.00038995,15]
[423624683,1780263068000,-152.312056,0.00038995,20]
[423624682,1780263068000,-1018.287063,0.00038995,30]
[423624686,1780263068000,-1018.28706429,0.00038995,30]
[423624684,1780263068000,-1018.287063,0.00038995,30]
[423624685,1780263068000,-1018.287063,0.00038995,30]
[423624687,1780263068000,-285.812052,0.00038995,30]
[423624688,1780263068000,-285.812052,0.00038995,30]
[423624699,1780263068000,-151.0,0.00038995,30]
[423624700,1780263068000,-1334.460671,0.00038995,30]
[423624692,1780263068000,-285.812058,0.00038995,30]
[423624694,1780263068000,-328.38579,0.00038995,30]
[423624701,1780263068000,-1836.785998,0.00038995,30]
[423624693,1780263068000,-328.38579,0.00038995,30]
[423624706,1780263068000,-1836.785999,0.00038995,30]
[423624697,1780263068000,-1836.785998,0.00038995,30]
[423624689,1780263068000,-285.812052,0.00038995,30]
[423624698,1780263068000,-328.385796,0.00038995,30]
[423624696,1780263068000,-151.0,0.00038995,30]
[423624691,1780263068000,-328.38579,0.00038995,30]
[423624703,1780263068000,-1836.785998,0.00038995,30]
[423624704,1780263068000,-1334.460669,0.00038995,30]
[423624702,1780263068000,-1334.460671,0.00038995,30]
[423624713,1780263068000,-151.0,0.00038995,30]
[423624705,1780263068000,-219.698004,0.00038995,30]
[423624711,1780263068000,-151.0,0.00038995,30]
[423624710,1780263068000,-219.69801,0.00038995,30]
[423624714,1780263068000,-151.0,0.00038995,30]
[423624709,1780263068000,-151.0,0.00038995,30]
[423624708,1780263068000,-219.698004,0.00038995,30]
[423624690,1780263068000,-151.0,0.00038995,30]
[423624725,1780263068000,-187.265087,0.00038995,30]
[423624739,1780263068000,-151.0,0.00038995,30]
[423624743,1780263068000,-2105.25216,0.00038995,7]
[423624780,1780263068000,-2341.37646919,0.00039093,2]
[423624784,1780263068000,-1384.25626573,0.00039093,2]
[423624787,1780263068000,-247.067233,0.000391,2]
[423624786,1780263068000,-259.067234,0.000391,2]
[423624770,1780263068000,-1040.0,0.00039,90]
[423624778,1780263068000,-2074.83975922,0.00039093,2]
[423624779,1780263068000,-1448.16551452,0.00039093,2]
[423624789,1780263068000,-89431.0,0.000391,7]
[423624790,1780263068000,-2312.479978,0.000391,30]
[423624781,1780263068000,-2529.8058123,0.00039093,2]
[423624792,1780263068000,-2312.479978,0.000391,30]
[423624791,1780263068000,-2312.479978,0.000391,30]
[423624812,1780263068000,-2288.32500794,0.00039178,30]
[423624811,1780263068000,-1422.52173165,0.00039152,2]
[423624795,1780263068000,-1406.279124,0.000391,30]
[423624801,1780263068000,-1535.407753,0.000391,30]
[423624805,1780263068000,-2000.0,0.0003914,110]
[423624809,1780263068000,-397.8017102,0.00039141,2]
[423624798,1780263068000,-1535.407751,0.000391,30]
[423624800,1780263068000,-1406.279124,0.000391,30]
[423624806,1780263068000,-2000.0,0.0003914,110]
[423624796,1780263068000,-1535.407751,0.000391,30]
[423624808,1780263068000,-2000.0,0.0003914,110]
[423624802,1780263068000,-555.0,0.0003912,10]
[423624804,1780263068000,-1173.74,0.00039132,7]
[423624797,1780263068000,-1406.279124,0.000391,30]
[423624807,1780263068000,-2000.0,0.0003914,110]
[423624799,1780263068000,-1406.279124,0.000391,30]
[423624803,1780263068000,-9730.4267306,0.0003912,2]
[423624777,1780263068000,-386.0,0.00039065,2]
[423624774,1780263068000,-2420.64172213,0.00039052,11]
[423624810,1780263068000,-560.78,0.00039145,30]
[423624785,1780263068000,-386.0,0.00039098,2]
[423624755,1780263068000,-151.0,0.00038995,30]
[423624737,1780263068000,-151.0,0.00038995,30]
[423624740,1780263068000,-2105.252162,0.00038995,7]
[423624748,1780263068000,-151.0,0.00038995,30]
[423624736,1780263068000,-151.0,0.00038995,15]
[423624731,1780263068000,-174.303912,0.00038995,30]
[423624744,1780263068000,-151.0,0.00038995,30]
[423624757,1780263068000,-755.902323,0.00038995,30]
[423624782,1780263068000,-2431.10654618,0.00039093,2]
[423624761,1780263068000,-189.322484,0.00038995,30]
[423624734,1780263068000,-151.0,0.00038995,30]
[423624750,1780263068000,-151.0,0.00038995,30]
[423624728,1780263068000,-174.303912,0.00038995,30]
[423624756,1780263068000,-755.902323,0.00038995,30]
[423624723,1780263068000,-187.265087,0.00038995,30]
[423624758,1780263068000,-189.322484,0.00038995,30]
[423624763,1780263068000,-41194.13762555,0.00039,30]
[423624729,1780263068000,-151.0,0.00038995,30]
[423624793,1780263068000,-2312.479985,0.000391,30]
[423624775,1780263068000,-2319.0,0.00039055,11]
[423624794,1780263068000,-1535.407751,0.000391,30]
[423624772,1780263068000,-167.8957425,0.00039,7]
[423624773,1780263068000,-1425.33417843,0.00039011,2]
[423624771,1780263068000,-201.08450453,0.00039,120]
[423624776,1780263068000,-2000.0,0.00039064,5]
[423624788,1780263068000,-244.067233,0.000391,2]
[423624765,1780263068000,-1459.0,0.00039,7]
[423624751,1780263068000,-151.0,0.00038995,30]
[423624754,1780263068000,-151.0,0.00038995,30]
[423624727,1780263068000,-187.265095,0.00038995,30]
[423624783,1780263068000,-1501.96332813,0.00039093,2]
[423624850,1780263069000,-295.23856588,0.0003924,35]
[423624828,1780263069000,-3000.0,0.00039234,30]
[423624821,1780263069000,-2000.0,0.00039198,18]
[423624870,1780263069000,-187.78006524,0.0003926,30]
[423624866,1780263069000,-151.0,0.0003926,30]
[423624831,1780263069000,-3000.0,0.00039234,30]
[423624819,1780263069000,-163.0,0.00039197,11]
[423624853,1780263069000,-731.89793765,0.0003924,35]
[423624814,1780263069000,-300.0,0.00039178,120]
[423624867,1780263069000,-621.78829552,0.0003926,30]
[423624851,1780263069000,-159.00591841,0.0003924,35]
[423624818,1780263069000,-350.0,0.00039196,8]
[423624871,1780263069000,-400.0,0.0003927,2]
[423624832,1780263069000,-3000.0,0.00039234,30]
[423624839,1780263069000,-213.96859446,0.0003924,35]
[423624873,1780263069000,-393.0,0.00039275,2]
[423624815,1780263069000,-396.353326,0.00039178,120]
[423624816,1780263069000,-7193.59,0.00039191,2]
[423624817,1780263069000,-386.0,0.00039196,2]
[423624825,1780263069000,-3000.0,0.00039234,30]
[423624854,1780263069000,-526.34906063,0.0003924,35]
[423624856,1780263069000,-167.88477092,0.0003924,35]
[423624823,1780263069000,-151.0,0.000392,120]
[423624830,1780263069000,-3000.0,0.00039234,30]
[423624852,1780263069000,-151.0,0.0003924,50]
[423624857,1780263069000,-206.16125616,0.0003924,35]
[423624826,1780263069000,-3000.0,0.00039234,30]
[423624827,1780263069000,-3000.0,0.00039234,30]
[423624872,1780263069000,-734.83951618,0.0003927,2]
[423624845,1780263069000,-152.0,0.0003924,50]
[423624862,1780263069000,-8565.75555911,0.0003926,30]
[423624840,1780263069000,-668.65185756,0.0003924,35]
[423624837,1780263069000,-644.79446245,0.0003924,50]
[423624878,1780263069000,-8260.13072238,0.00039287,30]
[423624834,1780263069000,-2000.0,0.00039239,50]
[423624824,1780263069000,-200.0,0.00039222,20]
[423624835,1780263069000,-2000.0,0.00039239,35]
[423624848,1780263069000,-644.79446245,0.0003924,50]
[423624842,1780263069000,-200.0,0.0003924,35]
[423624860,1780263069000,-198.97225456,0.0003926,30]
[423624874,1780263069000,-253.53307865,0.00039285,2]
[423624813,1780263069000,-300.0,0.00039178,120]
[423624844,1780263069000,-8711.34798982,0.0003924,35]
[423624836,1780263069000,-2000.0,0.00039239,31]
[423624841,1780263069000,-200.0,0.0003924,50]
[423624863,1780263069000,-1798.80895522,0.0003926,30]
[423624864,1780263069000,-152.0,0.0003926,30]
[423624868,1780263069000,-500.0,0.0003926,30]
[423624833,1780263069000,-1694.41,0.00039234,30]
[423624820,1780263069000,-2000.0,0.00039198,16]
[423624822,1780263069000,-2000.0,0.00039198,39]
[423624847,1780263069000,-151.0,0.0003924,50]
[423624849,1780263069000,-500.0,0.0003924,50]
[423624846,1780263069000,-670.58624095,0.0003924,50]
[423624859,1780263069000,-621.78829552,0.0003926,30]
[423624858,1780263069000,-1235.18214925,0.0003926,30]
[423624865,1780263069000,-646.65982734,0.0003926,30]
[423624869,1780263069000,-151.0,0.0003926,30]
[423624829,1780263069000,-3000.0,0.00039234,30]
[423624838,1780263069000,-206.33422798,0.0003924,50]
[423624861,1780263069000,-200.0,0.0003926,30]
[423624855,1780263069000,-194.72792766,0.0003924,50]
[423624843,1780263069000,-8882.6885148,0.0003924,50]
[423624883,1780263069000,-151.0,0.00039287,30]
[423624895,1780263069000,-178.42522448,0.00039299,30]
[423624881,1780263069000,-152.0,0.00039287,30]
[423624902,1780263069000,-7681.20591386,0.00039299,30]
[423624910,1780263069000,-579.88197956,0.00039299,30]
[423624920,1780263069000,-500.0,0.00039299,46]
[423624915,1780263069000,-557.5788265,0.00039299,30]
[423624916,1780263069000,-601.3376128,0.00039299,46]
[423624917,1780263069000,-151.0,0.00039299,46]
[423624924,1780263069000,-2000.0,0.00039299,46]
[423624926,1780263069000,-178.090746,0.000393,120]
[423624921,1780263069000,-578.20924308,0.00039299,46]
[423624923,1780263069000,-174.61919141,0.00039299,46]
[423624919,1780263069000,-168.3888056,0.00039299,30]
[423624925,1780263069000,-178.090746,0.000393,120]
[423624927,1780263069000,-160.0,0.000393,46]
[423624914,1780263069000,-500.0,0.00039299,30]
[423624918,1780263069000,-151.0,0.00039299,30]
[423624922,1780263069000,-151.0,0.00039299,46]
[423624932,1780263069000,-1000.0,0.00039317,90]
[423624936,1780263069000,-2012.12,0.00039329,7]
[423624930,1780263069000,-386.0,0.00039302,2]
[423624938,1780263069000,-162.380719,0.00039331,30]
[423624928,1780263069000,-221.0,0.000393,120]
[423624934,1780263069000,-1521.46317608,0.0003932,30]
[423624939,1780263069000,-1107.63007,0.00039331,30]
[423624931,1780263069000,-453.05809892,0.00039316,2]
[423624935,1780263069000,-1173.74,0.00039329,7]
[423624929,1780263069000,-200.0,0.000393,10]
[423624933,1780263069000,-273.05167002,0.0003932,120]
[423624941,1780263069000,-172.05904,0.00039331,30]
[423624940,1780263069000,-151.0,0.00039331,30]
[423624907,1780263069000,-557.57882651,0.00039299,30]
[423624903,1780263069000,-200.0,0.00039299,30]
[423624937,1780263069000,-537.6845,0.00039331,30]
[423624908,1780263069000,-200.0,0.00039299,30]
[423624913,1780263069000,-257.16610905,0.00039299,46]
[423624877,1780263069000,-191.87295522,0.00039287,30]
[423624879,1780263069000,-200.0,0.00039287,30]
[423624891,1780263069000,-1148.61238259,0.00039299,30]
[423624880,1780263069000,-1734.62772924,0.00039287,30]
[423624899,1780263069000,-2955.2880845,0.00039299,30]
[423624896,1780263069000,-578.20924308,0.00039299,46]
[423624898,1780263069000,-168.38880562,0.00039299,30]
[423624894,1780263069000,-158.93580664,0.00039299,30]
[423624875,1780263069000,-1191.11104074,0.00039287,30]
[423624890,1780263069000,-168.3888056,0.00039299,30]
[423624942,1780263069000,-162.380719,0.00039331,30]
[423624886,1780263069000,-151.0,0.00039287,30]
[423624900,1780263069000,-691.39774486,0.00039299,30]
[423624876,1780263069000,-599.60298507,0.00039287,30]
[423624888,1780263069000,-2000.0,0.00039298,3]
[423624893,1780263069000,-217.46363988,0.00039299,46]
[423624884,1780263069000,-500.0,0.00039287,30]
[423624901,1780263069000,-607.76245751,0.00039299,46]
[423624909,1780263069000,-1672.7364795,0.00039299,30]
[423624911,1780263069000,-151.0,0.00039299,30]
[423624905,1780263069000,-200.0,0.00039299,46]
[423624904,1780263069000,-7965.41053267,0.00039299,46]
[423624912,1780263069000,-152.0,0.00039299,46]
[423624906,1780263069000,-152.0,0.00039299,30]
[423624892,1780263069000,-557.5788265,0.00039299,30]
[423624897,1780263069000,-185.02695778,0.00039299,46]
[423624889,1780263069000,-2000.0,0.00039298,29]
[423624885,1780263069000,-599.60298507,0.00039287,30]
[423624887,1780263069000,-181.08010149,0.00039287,30]
[423624882,1780263069000,-623.58710447,0.00039287,30]
[423624978,1780263070000,-256.78,0.0003937,120]
[423624981,1780263070000,-19999.999999,0.0003939,20]
[423624980,1780263070000,-2000.0,0.00039389,24]
[423624979,1780263070000,-393.0,0.00039385,2]
[423624968,1780263070000,-5000.0,0.00039361,2]
[423624975,1780263070000,-200.0,0.0003937,120]
[423624974,1780263070000,-1000.0,0.00039367,90]
[423624984,1780263070000,-1398.231395,0.00039399,30]
[423624977,1780263070000,-200.0,0.0003937,120]
[423624985,1780263070000,-1398.231395,0.00039399,30]
[423624973,1780263070000,-386.0,0.00039367,2]
[423624992,1780263070000,-386.0,0.00039411,2]
[423624976,1780263070000,-200.0,0.0003937,120]
[423624982,1780263070000,-1398.231395,0.00039399,30]
[423624993,1780263070000,-2000.0,0.00039416,15]
[423624989,1780263070000,-309.0,0.000394,2]
[423624972,1780263070000,-2000.0,0.00039364,6]
[423624991,1780263070000,-315.0,0.000394,2]
[423624988,1780263070000,-643.0,0.000394,2]
[423624986,1780263070000,-151.0,0.00039399,30]
[423624987,1780263070000,-300.0,0.000394,10]
[423624990,1780263070000,-1000.0,0.000394,2]
[423624994,1780263070000,-626.0,0.00039418,15]
[423624983,1780263070000,-1398.231395,0.00039399,30]
[423624966,1780263070000,-400.0816436,0.00039359,2]
[423624971,1780263070000,-250.0,0.00039361,2]
[423624964,1780263070000,-2000.0,0.00039349,32]
[423624996,1780263070000,-163.0,0.0003942,120]
[423624944,1780263070000,-666.72878,0.00039331,30]
[423624943,1780263070000,-3226.107,0.00039331,30]